fUST/lending_fUST_20240612
["ID","MTS","AMOUNT","RATE_DAILY","PERIOD"]
[329224896,1718189442540,-786.1,0.00016438,2]
[329224898,1718189442550,-500.0,0.00016438,2]
[329224899,1718189442561,-500.0,0.00016438,2]
[329224900,1718189442572,-500.0,0.00016438,2]
[329224901,1718189442582,-500.0,0.00016438,2]
[329224902,1718189442593,-500.0,0.00016438,2]
[329224903,1718189442607,-810.78,0.00016438,2]
[329224904,1718189442620,-500.0,0.00016438,2]
[329224905,1718189442631,-500.0,0.00016438,2]
[329224906,1718189442641,-500.0,0.00016438,2]
[329224907,1718189442652,-500.0,0.00016438,2]
[329224908,1718189442662,-500.0,0.00016438,2]
[329224909,1718189442673,-500.0,0.00016438,2]
[329224910,1718189442684,-500.0,0.00016438,2]
[329224911,1718189442694,-500.0,0.00016438,2]
[329224912,1718189442706,-500.0,0.00016438,2]
[329224913,1718189442716,-500.0,0.00016438,2]
[329224914,1718189442727,-500.0,0.00016438,2]
[329224915,1718189442737,-500.0,0.00016438,2]
[329224916,1718189442748,-551.33490613,0.00016438,2]
[329224917,1718189442759,-500.0,0.00016438,2]
[329224918,1718189442771,-500.0,0.00016438,2]
[329224919,1718189442782,-500.0,0.00016438,2]
[329224920,1718189442792,-500.0,0.00016438,2]
[329224921,1718189442802,-500.0,0.00016438,2]
[329224922,1718189442814,-500.0,0.00016438,2]
[329224923,1718189442825,-500.0,0.00016438,2]
[329224924,1718189442835,-500.0,0.00016438,2]
[329224925,1718189442846,-500.0,0.00016438,2]
[329224926,1718189442860,-500.0,0.00016438,2]
[329224927,1718189442870,-500.0,0.00016438,2]
[329224928,1718189442880,-3655.11,0.00016438,2]
[329224929,1718189442891,-500.0,0.00016438,2]
[329224930,1718189442900,-500.0,0.00016438,2]
[329224931,1718189442911,-500.0,0.00016438,2]
[329224932,1718189442922,-1256.97,0.00016438,2]
[329224933,1718189442932,-501.7894053,0.00016438,2]
[329224934,1718189442943,-500.0,0.00016438,2]
[329224935,1718189442954,-500.0,0.00016438,2]
[329224936,1718189442964,-326.52014358,0.00016438,2]
[329224937,1718189442975,-500.0,0.00016438,2]
[329224938,1718189442986,-500.0,0.00016438,2]
[329224939,1718189442997,-500.0,0.00016438,2]
[329224940,1718189443008,-500.0,0.00016438,2]
[329224941,1718189443019,-394.19428947,0.00016438,2]
[329224942,1718189443030,-500.0,0.00016438,2]
[329224943,1718189443040,-500.0,0.00016438,2]
[329224944,1718189443050,-6092.49320418,0.00016438,2]
[329224945,1718189443197,-2633.42679582,0.00016438,2]
[329224946,1718189443208,-500.0,0.00016438,2]
[329224947,1718189443219,-500.0,0.00016438,2]
[329224948,1718189443229,-18538.88,0.00016438,2]
[329224949,1718189443240,-500.34,0.00016438,2]
[329224950,1718189443255,-506.48422182,0.00016438,2]
[329224951,1718189443270,-500.0,0.00016438,2]
[329224952,1718189443281,-500.0,0.00016438,2]
[329224953,1718189443292,-500.0,0.00016438,2]
[329224954,1718189443303,-500.0,0.00016438,2]
[329224955,1718189443315,-500.0,0.00016438,2]
[329224956,1718189443325,-500.0,0.00016438,2]
[329224957,1718189443338,-500.0,0.00016438,2]
[329224958,1718189443352,-500.0,0.00016438,2]
[329224959,1718189443363,-500.0,0.00016438,2]
[329224960,1718189443375,-500.0,0.00016438,2]
[329224961,1718189443390,-500.0,0.00016438,2]
[329224962,1718189443401,-500.0,0.00016438,2]
[329224963,1718189443412,-3654.01,0.00016438,2]
[329224964,1718189443425,-500.0,0.00016438,2]
[329224965,1718189443436,-1018.71,0.00016438,2]
[329224966,1718189443447,-298.30170961,0.00016438,2]
[329224967,1718189443470,-500.0,0.00016438,2]
[329224968,1718189443481,-511.51904992,0.00016438,2]
[329224969,1718189443494,-500.0,0.00016438,2]
[329224970,1718189443505,-500.0,0.00016438,2]
[329224971,1718189443518,-500.0,0.00016438,2]
[329224972,1718189443530,-3344.13,0.00016438,2]
[329224973,1718189443541,-500.0,0.00016438,2]
[329224974,1718189443552,-364.53588936,0.00016438,2]
[329224975,1718189443564,-500.0,0.00016438,2]
[329224976,1718189443575,-500.0,0.00016438,2]
[329224977,1718189443586,-500.0,0.00016438,2]
[329224978,1718189443598,-155.01860223,0.000165,2]
[329224979,1718189443609,-214.6,0.00016575,2]
[329224980,1718189443620,-500.0,0.00016711,2]
[329224981,1718189443631,-500.0,0.00016711,2]
[329224982,1718189443641,-1072.99,0.00016711,2]
[329224983,1718189443653,-1072.99,0.00016711,2]
[329224984,1718189443664,-1072.99,0.00016711,2]
[329224985,1718189443674,-500.0,0.00016711,2]
[329224986,1718189443686,-500.0,0.00016711,2]
[329224987,1718189443697,-500.0,0.00016712,2]
[329224988,1718189443709,-500.0,0.00016712,2]
[329224989,1718189443720,-513.26649873,0.00016712,2]
[329224990,1718189443731,-500.0,0.00016712,2]
[329224991,1718189443742,-500.0,0.00016712,2]
[329224992,1718189443753,-500.0,0.00016712,2]
[329224993,1718189443773,-500.0,0.00016712,2]
[329224994,1718189443784,-500.0,0.00016712,2]
[329224995,1718189443794,-500.0,0.00016712,2]
[329224996,1718189443805,-500.0,0.00016712,2]
[329224997,1718189443816,-500.0,0.00016712,2]
[329224998,1718189443828,-500.0,0.00016712,2]
[329224999,1718189443840,-500.0,0.00016712,2]
[329225000,1718189443853,-500.0,0.00016712,2]
[329225001,1718189443865,-500.0,0.00016712,2]
[329225002,1718189443882,-500.0,0.00016712,2]
[329225003,1718189443898,-500.0,0.00016712,2]
[329225004,1718189443910,-500.0,0.00016712,2]
[329225005,1718189443923,-500.0,0.00016712,2]
[329225006,1718189443935,-619.93,0.00016712,2]
[329225007,1718189443947,-263.13399143,0.00016712,2]
[329225008,1718189443960,-500.0,0.00016712,2]
[329225009,1718189443973,-549.63899548,0.00016712,2]
[329225010,1718189443984,-500.0,0.00016712,2]
[329225011,1718189443995,-500.0,0.00016712,2]
[329225012,1718189444007,-500.0,0.00016712,2]
[329225013,1718189444017,-511.06814897,0.00016712,2]
[329225014,1718189444028,-500.0,0.00016712,4]
[329225015,1718189444039,-500.0,0.00016712,2]
[329225016,1718189444050,-500.0,0.00016712,2]
[329225017,1718189444062,-500.0,0.00016712,2]
[329225018,1718189444073,-250.0,0.00016712,2]
[329225019,1718189444085,-500.0,0.00016712,2]
[329225020,1718189444096,-500.0,0.00016712,2]
[329225021,1718189444108,-500.0,0.00016712,2]
[329225022,1718189444119,-500.0,0.00016712,2]
[329225023,1718189444130,-500.0,0.00016712,2]
[329225024,1718189444140,-500.0,0.00016712,2]
[329225025,1718189444151,-580.83,0.00016712,2]
[329225026,1718189444162,-500.0,0.00016712,2]
[329225027,1718189444173,-500.0,0.00016712,2]
[329225028,1718189444184,-500.0,0.00016712,2]
[329225030,1718189444198,-456.30704182,0.00016712,2]
[329225032,1718189444212,-500.0,0.00016712,2]
[329225034,1718189444223,-723.66,0.00016712,2]
[329225035,1718189444234,-500.0,0.00016712,2]
[329225036,1718189444244,-500.0,0.00016712,2]
[329225037,1718189444256,-500.0,0.00016712,2]
[329225038,1718189444268,-439.67644935,0.00016712,2]
[329225039,1718189444279,-500.0,0.00016712,2]
[329225040,1718189444290,-500.0,0.00016712,2]
[329225041,1718189444301,-530.5829225,0.00016712,2]
[329225042,1718189444312,-500.0,0.00016712,2]
[329225043,1718189444323,-635.867111,0.00016712,2]
[329225044,1718189444335,-500.0,0.00016712,2]
[329225045,1718189444351,-500.0,0.00016712,2]
[329225046,1718189444362,-500.0,0.00016712,2]
[329225048,1718189444373,-500.0,0.00016712,2]
[329225049,1718189444386,-504.93859245,0.00016712,2]
[329225051,1718189444396,-500.0,0.00016712,2]
[329225053,1718189444409,-500.0,0.00016712,2]
[329225055,1718189444422,-505.38485582,0.00016712,2]
[329225056,1718189444434,-500.0,0.00016712,2]
[329225057,1718189444493,-500.0,0.00016712,2]
[329225058,1718189444505,-500.0,0.00016712,2]
[329225059,1718189444519,-503.14175203,0.00016712,2]
[329225060,1718189444530,-170.02,0.00016712,2]
[329225061,1718189444542,-505.20985482,0.00016712,2]
[329225062,1718189444553,-500.0,0.00016712,2]
[329225063,1718189444565,-500.0,0.00016712,2]
[329225064,1718189444578,-500.0,0.00016712,2]
[329225065,1718189444592,-505.60901484,0.00016712,2]
[329225066,1718189444609,-500.0,0.00016712,2]
[329225067,1718189444625,-500.0,0.00016712,2]
[329225068,1718189444642,-825.55,0.00016712,2]
[329225069,1718189444656,-500.0,0.00016712,2]
[329225071,1718189444807,-500.0,0.00016712,2]
[329225072,1718189444819,-501.74103468,0.00016712,2]
[329225073,1718189444830,-500.0,0.00016712,2]
[329225074,1718189444842,-500.0,0.00016712,2]
[329225075,1718189444854,-500.0,0.00016712,2]
[329225076,1718189444866,-1727.59,0.00016712,2]
[329225077,1718189444878,-1740.19,0.00016712,2]
[329225078,1718189444889,-209.58979908,0.00016712,2]
[329225079,1718189444902,-505.72840727,0.00016712,2]
[329225080,1718189444914,-500.0,0.00016712,2]
[329225081,1718189444926,-7063.79,0.00016712,2]
[329225082,1718189444937,-500.0,0.00016712,2]
[329225083,1718189444949,-786.1,0.00016712,2]
[329225084,1718189444960,-500.0,0.00016712,2]
[329225085,1718189444973,-500.0,0.00016712,2]
[329225086,1718189444987,-810.78,0.00016712,2]
[329225087,1718189444998,-500.0,0.00016712,2]
[329225088,1718189445012,-500.0,0.00016712,2]
[329225089,1718189445024,-500.0,0.00016712,2]
[329225090,1718189445035,-500.0,0.00016712,2]
[329225091,1718189445046,-500.0,0.00016712,2]
[329225092,1718189445059,-500.0,0.00016712,2]
[329225093,1718189445070,-500.0,0.00016712,2]
[329225094,1718189445083,-500.0,0.00016712,2]
[329225095,1718189445094,-557.46,0.00016712,2]
[329225096,1718189445104,-500.0,0.00016712,2]
[329225097,1718189445115,-500.0,0.00016712,2]
[329225098,1718189445125,-500.0,0.00016712,2]
[329225099,1718189445136,-500.0,0.00016712,2]
[329225101,1718189445147,-3655.11,0.00016712,2]
[329225103,1718189445157,-500.0,0.00016712,2]
[329225105,1718189445169,-1256.97,0.00016712,2]
[329225107,1718189445180,-500.0,0.00016712,2]
[329225109,1718189445191,-500.0,0.00016712,2]
[329225111,1718189445202,-8725.92,0.00016712,2]
[329225113,1718189445212,-18538.88,0.00016712,2]
[329225115,1718189445222,-500.34,0.00016712,2]
[329225117,1718189445233,-500.0,0.00016712,2]
[329225119,1718189445243,-500.0,0.00016712,2]
[329225121,1718189445253,-500.0,0.00016712,2]
[329225123,1718189445265,-500.0,0.00016712,2]
[329225124,1718189445275,-507.74603429,0.00016712,2]
[329225126,1718189445286,-404.35118187,0.00016712,2]
[329225128,1718189445297,-510.89382712,0.00016712,2]
[329225130,1718189445308,-3654.01,0.00016712,2]
[329225132,1718189445318,-500.0,0.00016712,2]
[329225134,1718189445328,-1018.71,0.00016712,2]
[329225136,1718189445339,-500.0,0.00016712,2]
[329225138,1718189445351,-512.43162702,0.00016712,2]
[329225139,1718189445361,-500.0,0.00016712,2]
[329225140,1718189445372,-3344.13,0.00016712,2]
[329225141,1718189445382,-500.0,0.00016712,2]
[329225142,1718189445394,-505.99340678,0.00016712,2]
[329225143,1718189445404,-214.6,0.00016722,2]
[329225144,1718189445414,-1427.62302164,0.00016747,2]
[329225145,1718189445429,-1372.1732619,0.00016824,2]
[329225146,1718189445440,-214.6,0.0001687,2]
[329225147,1718189445455,-500.0,0.00016985,2]
[329225148,1718189445484,-500.0,0.00016985,2]
[329225150,1718189445495,-1072.99,0.00016985,2]
[329225151,1718189445505,-1072.99,0.00016985,2]
[329225152,1718189445518,-500.0,0.00016985,2]
[329225153,1718189445532,-500.0,0.00016985,2]
[329225154,1718189445544,-500.0,0.00016986,2]
[329225155,1718189445556,-500.0,0.00016986,2]
[329225156,1718189445570,-508.594545,0.00016986,2]
[329225157,1718189445581,-500.0,0.00016986,2]
[329225158,1718189445592,-588.10580168,0.00016986,2]
[329225159,1718189445603,-500.0,0.00016986,2]
[329225160,1718189445616,-500.0,0.00016986,2]
[329225161,1718189445627,-500.0,0.00016986,2]
[329225162,1718189445639,-500.0,0.00016986,2]
[329225163,1718189445650,-500.0,0.00016986,2]
[329225164,1718189445662,-500.0,0.00016986,2]
[329225165,1718189445673,-500.0,0.00016986,2]
[329225166,1718189445684,-500.0,0.00016986,2]
[329225167,1718189445698,-500.0,0.00016986,2]
[329225169,1718189445709,-500.0,0.00016986,4]
[329225171,1718189445720,-500.0,0.00016986,2]
[329225172,1718189445731,-500.0,0.00016986,2]
[329225174,1718189445741,-500.0,0.00016986,2]
[329225175,1718189445753,-250.0,0.00016986,2]
[329225176,1718189445764,-500.0,0.00016986,2]
[329225177,1718189445775,-500.0,0.00016986,2]
[329225179,1718189445786,-593.6149024,0.00016986,2]
[329225181,1718189445797,-500.0,0.00016986,2]
[329225182,1718189445808,-500.0,0.00016986,2]
[329225184,1718189445819,-580.83,0.00016986,2]
[329225186,1718189445833,-500.0,0.00016986,2]
[329225187,1718189445844,-500.0,0.00016986,2]
[329225188,1718189445855,-500.0,0.00016986,2]
[329225189,1718189445866,-500.0,0.00016986,2]
[329225190,1718189445876,-723.66,0.00016986,2]
[329225192,1718189445887,-449.0730593,0.00016986,2]
[329225194,1718189445898,-500.0,0.00016986,2]
[329225196,1718189445910,-500.0,0.00016986,2]
[329225198,1718189445922,-500.0,0.00016986,2]
[329225199,1718189445934,-500.0,0.00016986,2]
[329225200,1718189445945,-500.0,0.00016986,2]
[329225201,1718189445956,-500.0,0.00016986,2]
[329225202,1718189445967,-500.0,0.00016986,2]
[329225203,1718189445977,-500.0,0.00016986,2]
[329225204,1718189445987,-500.0,0.00016986,2]
[329225205,1718189445998,-500.0,0.00016986,2]
[329225206,1718189446009,-500.0,0.00016986,2]
[329225207,1718189446020,-500.0,0.00016986,2]
[329225208,1718189446030,-500.0,0.00016986,2]
[329225209,1718189446041,-395.55217758,0.00016986,2]
[329225210,1718189446052,-500.0,0.00016986,2]
[329225211,1718189446062,-825.55,0.00016986,2]
[329225212,1718189446073,-500.0,0.00016986,2]
[329225213,1718189446083,-500.0,0.00016986,2]
[329225214,1718189446094,-500.0,0.00016986,2]
[329225215,1718189446105,-500.0,0.00016986,2]
[329225216,1718189446115,-1727.59,0.00016986,2]
[329225217,1718189446125,-278.7,0.00016986,2]
[329225218,1718189446136,-7063.79,0.00016986,2]
[329225219,1718189446147,-500.0,0.00016986,2]
[329225220,1718189446158,-786.1,0.00016986,2]
[329225221,1718189446168,-521.32724151,0.00016986,2]
[329225222,1718189446179,-1740.19,0.00016986,2]
[329225223,1718189446190,-810.78,0.00016986,2]
[329225224,1718189446200,-500.0,0.00016986,2]
[329225225,1718189446211,-500.0,0.00016986,2]
[329225226,1718189446221,-500.0,0.00016986,2]
[329225227,1718189446232,-500.0,0.00016986,2]
[329225228,1718189446243,-500.0,0.00016986,2]
[329225229,1718189446253,-500.0,0.00016986,2]
[329225230,1718189446265,-500.0,0.00016986,2]
[329225231,1718189446276,-500.0,0.00016986,2]
[329225232,1718189446286,-500.0,0.00016986,2]
[329225233,1718189446297,-3655.11,0.00016986,2]
[329225234,1718189446307,-500.0,0.00016986,2]
[329225235,1718189446318,-1256.97,0.00016986,2]
[329225236,1718189446329,-500.0,0.00016986,2]
[329225237,1718189446340,-500.0,0.00016986,2]
[329225238,1718189446354,-8725.92,0.00016986,2]
[329225239,1718189446366,-18538.88,0.00016986,2]
[329225240,1718189446377,-500.34,0.00016986,2]
[329225241,1718189446389,-500.0,0.00016986,2]
[329225242,1718189446400,-500.0,0.00016986,2]
[329225243,1718189446411,-500.0,0.00016986,2]
[329225244,1718189446422,-3654.01,0.00016986,2]
[329225245,1718189446434,-511.80827517,0.00016986,2]
[329225246,1718189446445,-1018.71,0.00016986,2]
[329225247,1718189446477,-3344.13,0.00016986,2]
[329225248,1718189446488,-2200.0,0.00017,2]
[329225249,1718189446499,-214.6,0.00017017,2]
[329225250,1718189446510,-1427.62302164,0.00017159,2]
[329225251,1718189446525,-214.6,0.00017164,2]
[329225252,1718189446539,-391.87892282,0.00017259,2]
[329225253,1718189446553,-1072.99,0.00017259,2]
[329225254,1718189446567,-1072.99,0.00017259,2]
[329225255,1718189446581,-500.0,0.00017259,2]
[329225256,1718189446593,-366.78342153,0.00017259,2]
[329225257,1718189446605,-500.0,0.0001726,2]
[329225258,1718189446620,-500.0,0.0001726,2]
[329225259,1718189446633,-500.0,0.0001726,2]
[329225260,1718189446646,-500.0,0.0001726,2]
[329225261,1718189446659,-500.0,0.0001726,2]
[329225262,1718189446673,-500.0,0.0001726,2]
[329225263,1718189446687,-551.2095067,0.0001726,2]
[329225264,1718189446700,-500.0,0.0001726,2]
[329225265,1718189446714,-310.85025111,0.0001726,2]
[329225266,1718189446730,-500.0,0.0001726,2]
[329225268,1718189446744,-500.0,0.0001726,4]
[329225269,1718189446758,-500.0,0.0001726,2]
[329225270,1718189446771,-514.81433297,0.0001726,2]
[329225271,1718189446784,-250.0,0.0001726,2]
[329225272,1718189446798,-500.0,0.0001726,2]
[329225273,1718189446812,-500.0,0.0001726,2]
[329225274,1718189446825,-613.1078874,0.0001726,2]
[329225275,1718189446839,-500.0,0.0001726,2]
[329225276,1718189446854,-580.83,0.0001726,2]
[329225277,1718189446865,-500.0,0.0001726,2]
[329225278,1718189446878,-500.0,0.0001726,2]
[329225279,1718189446889,-500.0,0.0001726,2]
[329225280,1718189446902,-500.0,0.0001726,2]
[329225281,1718189446914,-723.66,0.0001726,2]
[329225282,1718189446926,-500.0,0.0001726,2]
[329225283,1718189446939,-500.0,0.0001726,2]
[329225285,1718189446952,-500.0,0.0001726,2]
[329225287,1718189446964,-500.0,0.0001726,2]
[329225289,1718189446980,-534.73163504,0.0001726,2]
[329225291,1718189446992,-500.0,0.0001726,2]
[329225292,1718189447008,-324.57038224,0.0001726,2]
[329225293,1718189447021,-500.0,0.0001726,2]
[329225294,1718189447035,-206.84965784,0.0001726,2]
[329225295,1718189447049,-500.0,0.0001726,2]
[329225296,1718189447061,-588.26120182,0.0001726,2]
[329225297,1718189447074,-500.0,0.0001726,2]
[329225298,1718189447086,-500.0,0.0001726,2]
[329225299,1718189447097,-500.0,0.0001726,2]
[329225300,1718189447110,-825.55,0.0001726,2]
[329225301,1718189447123,-255.41723756,0.0001726,2]
[329225302,1718189447136,-500.0,0.0001726,2]
[329225303,1718189447150,-1727.59,0.0001726,2]
[329225304,1718189447164,-7063.79,0.0001726,2]
[329225305,1718189447175,-786.1,0.0001726,2]
[329225306,1718189447186,-1740.19,0.0001726,2]
[329225307,1718189447199,-810.78,0.0001726,2]
[329225308,1718189447211,-500.0,0.0001726,2]
[329225309,1718189447223,-500.0,0.0001726,2]
[329225310,1718189447235,-500.0,0.0001726,2]
[329225311,1718189447246,-594.44080615,0.0001726,2]
[329225312,1718189447257,-150.55,0.0001726,2]
[329225313,1718189447268,-500.0,0.0001726,2]
[329225314,1718189447279,-500.0,0.0001726,2]
[329225315,1718189447291,-500.0,0.0001726,2]
[329225316,1718189447302,-165.58453899,0.0001726,2]
[329225317,1718189447315,-3655.11,0.0001726,2]
[329225318,1718189447327,-1256.97,0.0001726,2]
[329225319,1718189447339,-8725.92,0.0001726,2]
[329225320,1718189447356,-18538.88,0.0001726,2]
[329225321,1718189447368,-500.34,0.0001726,2]
[329225322,1718189447379,-500.0,0.0001726,2]
[329225323,1718189447392,-500.0,0.0001726,2]
[329225324,1718189447404,-262.28007136,0.0001726,2]
[329225325,1718189447415,-3654.01,0.0001726,2]
[329225326,1718189447428,-1018.71,0.0001726,2]
[329225327,1718189447440,-3344.13,0.0001726,2]
[329225328,1718189447458,-214.6,0.00017312,2]
[329225329,1718189447485,-214.6,0.00017459,2]
[329225330,1718189447497,-1072.99,0.00017533,2]
[329225331,1718189447509,-1072.99,0.00017533,2]
[329225332,1718189447522,-160.34758777,0.00017534,2]
[329225333,1718189447534,-500.0,0.00017534,2]
[329225335,1718189447548,-294.89911392,0.00017534,2]
[329225336,1718189447560,-500.0,0.00017534,2]
[329225337,1718189447572,-500.0,0.00017534,2]
[329225338,1718189447585,-500.0,0.00017534,2]
[329225339,1718189447597,-500.0,0.00017534,2]
[329225340,1718189447610,-500.0,0.00017534,2]
[329225341,1718189447621,-500.0,0.00017534,4]
[329225342,1718189447634,-500.0,0.00017534,2]
[329225343,1718189447646,-250.0,0.00017534,2]
[329225344,1718189447659,-500.0,0.00017534,2]
[329225345,1718189447672,-500.0,0.00017534,2]
[329225346,1718189447684,-500.0,0.00017534,2]
[329225348,1718189447696,-580.83,0.00017534,2]
[329225349,1718189447709,-500.0,0.00017534,2]
[329225352,1718189447722,-500.0,0.00017534,2]
[329225354,1718189447733,-544.83215869,0.00017534,2]
[329225355,1718189447745,-500.0,0.00017534,2]
[329225356,1718189447757,-723.66,0.00017534,2]
[329225357,1718189447769,-500.0,0.00017534,2]
[329225358,1718189447781,-500.0,0.00017534,2]
[329225359,1718189447794,-500.0,0.00017534,2]
[329225360,1718189447806,-500.0,0.00017534,2]
[329225361,1718189447818,-318.1967511,0.00017534,2]
[329225362,1718189447830,-500.0,0.00017534,2]
[329225363,1718189447841,-500.0,0.00017534,2]
[329225364,1718189447854,-500.0,0.00017534,2]
[329225365,1718189447866,-825.55,0.00017534,2]
[329225366,1718189447878,-500.0,0.00017534,2]
[329225368,1718189447891,-1727.59,0.00017534,2]
[329225370,1718189447904,-7063.79,0.00017534,2]
[329225372,1718189447916,-786.1,0.00017534,2]
[329225374,1718189447927,-1740.19,0.00017534,2]
[329225377,1718189447940,-810.78,0.00017534,2]
[329225378,1718189447952,-500.0,0.00017534,2]
[329225380,1718189447964,-500.0,0.00017534,2]
[329225381,1718189447976,-500.0,0.00017534,2]
[329225382,1718189447988,-500.0,0.00017534,2]
[329225383,1718189448000,-500.0,0.00017534,2]
[329225384,1718189448011,-3655.11,0.00017534,2]
[329225385,1718189448025,-1256.97,0.00017534,2]
[329225386,1718189448038,-500.0,0.00017534,2]
[329225387,1718189448051,-8725.92,0.00017534,2]
[329225388,1718189448064,-18538.88,0.00017534,2]
[329225391,1718189448077,-500.34,0.00017534,2]
[329225393,1718189448089,-500.0,0.00017534,2]
[329225395,1718189448101,-500.0,0.00017534,2]
[329225397,1718189448113,-3654.01,0.00017534,2]
[329225399,1718189448125,-1018.71,0.00017534,2]
[329225401,1718189448137,-3344.13,0.00017534,2]
[329225402,1718189448149,-1427.62302164,0.0001757,2]
[329225403,1718189448161,-1975.42229871,0.000176,2]
[329225404,1718189448172,-214.6,0.00017606,2]
[329225405,1718189448185,-214.6,0.00017753,2]
[329225407,1718189448197,-1072.99,0.00017807,2]
[329225409,1718189448210,-500.0,0.00017808,2]
[329225411,1718189448223,-500.0,0.00017808,2]
[329225413,1718189448236,-500.0,0.00017808,2]
[329225415,1718189448249,-241.67580559,0.00017808,2]
[329225417,1718189448260,-500.0,0.00017808,2]
[329225419,1718189448271,-500.0,0.00017808,2]
[329225421,1718189448283,-500.0,0.00017808,4]
[329225423,1718189448299,-500.0,0.00017808,2]
[329225425,1718189448313,-250.0,0.00017808,2]
[329225427,1718189448324,-500.0,0.00017808,2]
[329225429,1718189448335,-500.0,0.00017808,2]
[329225431,1718189448351,-580.83,0.00017808,2]
[329225433,1718189448362,-500.0,0.00017808,2]
[329225447,1718189448549,-500.0,0.00017808,2]
[329225449,1718189448566,-500.0,0.00017808,2]
[329225451,1718189448577,-723.66,0.00017808,2]
[329225453,1718189448588,-500.0,0.00017808,2]
[329225455,1718189448599,-500.0,0.00017808,2]
[329225457,1718189448610,-500.0,0.00017808,2]
[329225459,1718189448621,-500.0,0.00017808,2]
[329225461,1718189448633,-500.0,0.00017808,2]
[329225463,1718189448644,-500.0,0.00017808,2]
[329225465,1718189448655,-825.55,0.00017808,2]
[329225467,1718189448665,-500.0,0.00017808,2]
[329225469,1718189448677,-500.0,0.00017808,2]
[329225471,1718189448688,-1727.59,0.00017808,2]
[329225473,1718189448699,-7063.79,0.00017808,2]
[329225475,1718189448710,-786.1,0.00017808,2]
[329225477,1718189448721,-1740.19,0.00017808,2]
[329225479,1718189448735,-810.78,0.00017808,2]
[329225481,1718189448746,-500.0,0.00017808,2]
[329225483,1718189448757,-500.0,0.00017808,2]
[329225485,1718189448769,-500.0,0.00017808,2]
[329225487,1718189448781,-500.0,0.00017808,2]
[329225488,1718189448792,-3655.11,0.00017808,2]
[329225489,1718189448803,-1256.97,0.00017808,2]
[329225490,1718189448814,-500.0,0.00017808,2]
[329225492,1718189448825,-8725.92,0.00017808,2]
[329225494,1718189448836,-18538.88,0.00017808,2]
[329225496,1718189448846,-500.34,0.00017808,2]
[329225498,1718189448859,-500.0,0.00017808,2]
[329225500,1718189448870,-500.0,0.00017808,2]
[329225502,1718189448880,-3654.01,0.00017808,2]
[329225504,1718189448891,-1018.71,0.00017808,2]
[329225506,1718189448901,-3344.13,0.00017808,2]
[329225508,1718189448913,-1072.99,0.00017897,2]
[329225510,1718189448924,-10491.92816074,0.00017898,2]
[329225512,1718189448935,-1427.62302164,0.00017982,2]
[329225514,1718189448948,-1355.61945113,0.00018,2]
[329225516,1718189448959,-876.82850055,0.00018,2]
[329225518,1718189448969,-2765.44251206,0.00018,2]
[329225520,1718189448982,-155.02015262,0.00018,2]
[329225522,1718189448993,-155.02790502,0.00018,2]